Cogmind - Beta 15 @@@ ROGUE MODE // 2025.07.04 @ 14:10:55 Player: Khoroshiy Result: Destroyed by S-10 Pest with Light Assault Rifle Performance ------------- Evolutions (0) 0 Regions Visited (2) 400 Robots Destroyed (21) 105 Value Destroyed (451) 451 Prototype IDs (0) 0 Alien Tech Used (0) 0 Bonus (0) 0 TOTAL SCORE: 956 Bonus ------- None Cogmind --------- Core Integrity 0/250 Matter 300/300 Energy 246/250 System Corruption 0% Temperature Cool (30) Movement Rolling (95) Ox1 Location -10/Mines Parts ------- > --- POWER (1) -------- Ion Engine > --- PROPULSION (2) --- Wheel Wheel > --- UTILITY (2) ------ High-capacity Storage Unit Weight Redist. System > --- WEAPON (2) ------- Small Laser > --- INVENTORY (20) --- Light Ion Engine Light Nuclear Core Aluminum Leg Aluminum Leg VTOL Module VTOL Module Weight Redist. System Weight Redist. System Small Laser Small Laser Mining Laser Peak State ------------ > --- POWER ------------ Ion Engine > --- PROPULSION ------- VTOL Module VTOL Module > --- UTILITY ---------- High-capacity Storage Unit Weight Redist. System > --- WEAPON ----------- Small Laser Light Assault Rifle > --- INVENTORY -------- Ion Engine Light Ion Engine Aluminum Leg Aluminum Leg VTOL Module VTOL Module Small Laser Small Laser Grenade Launcher [Rating: 11] Favorites ----------- Power Ion Engine Engine Ion Engine Propulsion Wheel Wheel Wheel Flight Unit VTOL Module Utility High-capacity Storage Unit Device Weight Redist. System Storage High-capacity Storage Unit Weapon Small Laser Energy Gun Small Laser Ballistic Gun Light Assault Rifle Launcher Grenade Launcher Build | -11 -10 -10 ------- Run | Yrd Mat Min Slots Evolved . | . . . Power . | . . . Propulsion . | . . . Utility . | . . . Weapon . | . . . Parts Attached 15 | 5 10 . Power 2 | 1 1 . Engine 2 | 1 1 . Core . | . . . Reactor . | . . . Propulsion 6 | 2 4 . Treads . | . . . Leg . | . . . Wheel 4 | 2 2 . Hover . | . . . Flight 2 | . 2 . Utility 2 | . 2 . Device 1 | . 1 . Storage 1 | . 1 . Processor . | . . . Hackware . | . . . Protection . | . . . Artifact . | . . . Weapon 5 | 2 3 . Energy Gun 3 | 1 2 . Energy Cannon . | . . . Ballistic Gun 1 | 1 . . Ballistic Cannon . | . . . Launcher 1 | . 1 . Special Weapon . | . . . Impact Weapon . | . . . Slashing Weapon . | . . . Piercing Weapon . | . . . Special Melee Weapon . | . . . Unidentified Prototypes . | . . . Parts Lost 6 | . 5 1 Power . | . . . Propulsion 2 | . 2 . Utility . | . . . Weapon 4 | . 3 1 Highest Loss Streak 2 | . 2 1 To Critical Strikes . | . . . Average Backups 8 | 2 8 11 Power 1 | . 1 2 Propulsion 3 | 1 3 4 Utility 1 | . 1 2 Weapon 2 | . 2 3 Tool/Special . | . . . Unused Backups 10 | . . 10 Power 2 | . . 2 Propulsion 4 | . . 4 Utility 2 | . . 2 Weapon 2 | . . 2 Tool/Special . | . . . Average Slot Usage (%) 90 | . 90 100 Engine 14 | . 14 14 Wheel 15 | . 15 28 Flight 10 | . 11 . Device 10 | . 10 14 Storage 12 | . 12 14 Energy Gun 16 | . 15 28 Ballistic Gun 8 | . 9 . Peak Build Rating 11 | 5 11 9 Average Rating 8 | 3 8 8 On Entrance 4 | . 5 9 Naked Turns . | . . . Heaviest Build 49 | 7 49 47 Greatest Support 26 | 26 26 26 Greatest Overweight (x) 11 | 1 11 1 Average Overweight (x) 1 | . 1 1 Largest Inventory Capacity 20 | 5 20 20 Average Capacity 17 | 5 18 20 Most Carried 12 | 4 12 11 Average Carried 8 | 2 8 11 Final Capacity 20 | 5 20 20 Final Carried 11 | 4 11 11 Class Distribution -------------------- 90% | Mutant 9% | Scavenger-Mutant Dominant Class ---------------- Mutant | -10/Materials Scavenger-Mutant | -10/Mines Resources | -11 -10 -10 ----------- Run | Yrd Mat Min Matter Collected 439 | 175 264 . Remotely . | . . . Salvage Created 566 | . 550 16 Parts 51 | . 49 2 Haulers Intercepted 1 | . 1 . Recyclers Shooed . | . . . Parts Field Recycled . | . . . Retrieved Matter . | . . . Parts Self-Destructed . | . . . Prevented . | . . . Kills | -11 -10 -10 ------- Run | Yrd Mat Min Combat Hostiles Destroyed 17 | . 16 1 Guns 17 | . 16 1 Classes Destroyed 5 | . 5 . Builder 2 | . 2 . Hauler 1 | . 1 . Operator 1 | . 1 . Swarmer 7 | . 6 1 Grunt 10 | . 10 . Best Kill Streak 3 | . 3 1 Combat Bots Only 3 | . 3 1 Max Kills in Single Turn 2 | . 2 1 Gunslinging . | . . . Exploded . | . . . Melee . | . . . Uniques/NPCs Destroyed . | . . . Combat | -11 -10 -10 -------- Run | Yrd Mat Min Hostile Shots Fired 110 | . 101 9 Missed 29 | . 28 1 Hits 81 | . 73 8 Projectile 81 | . 73 8 Critical Strikes 1 | . 1 . Damage Taken 900 | . 834 66 Core 256 | . 238 18 Absorbed by Shields . | . . . Regen/Repaired (Parts) 54 | . 54 . Core Remaining (%) 100 | 100 . . Volleys Fired 70 | . 68 2 Largest 2 | . 2 2 Hottest 80 | . 80 80 Shots Fired 112 | . 108 4 Gun 110 | . 106 4 Cannon . | . . . Launcher 2 | . 2 . Special . | . . . Kinetic 44 | . 44 . Thermal 66 | . 62 4 Explosive 2 | . 2 . Electromagnetic . | . . . Robot Hit Streak 11 | . 11 2 Robot Miss Streak 3 | . 3 1 Penetration Max . | . . . Secondary Targets 1 | . 1 . Max Gunslinging Chain 1 | . 1 . Shots Hit Robots 69 | . 66 3 Core Hits 34 | . 33 1 Critical Kills . | . . . Critical Parts Destroyed . | . . . Critical Strikes . | . . . Melee Attacks . | . . . Impact . | . . . Slashing . | . . . Piercing . | . . . Sneak Attacks . | . . . Combat Hostiles . | . . . Follow-up Attacks . | . . . Damage Inflicted 861 | . 827 34 Guns 692 | . 658 34 Cannons . | . . . Explosions 168 | . 168 . Melee . | . . . Ramming 1 | . 1 . Kinetic 248 | . 248 . Thermal 444 | . 410 34 Explosive 168 | . 168 . Electromagnetic . | . . . Impact . | . . . Slashing . | . . . Piercing . | . . . Highest Corruption . | . . . Average Corruption . | . . . Corruption Purged . | . . . Corruption Blocked . | . . . Overload Shots . | . . . Overflow Damage 5 | . 5 . Projectiles . | . . . Explosions 5 | . 5 . Melee . | . . . Knockbacks . | . . . Impact . | . . . Kinetic . | . . . Secondary . | . . . Self-Inflicted Damage 32 | . 32 . Shots 1 | . 1 . Rammed 1 | . 1 . Targets Rammed 1 | . 1 . Kicked . | . . . Crushed . | . . . Highest Temperature 324 | . 324 30 Average Temperature 68 | . 70 18 Received Heat Transfer 414 | . 414 . Effects 1 | . 1 . Energy Bleed 1 | . 1 . Siege Activations . | . . . Martial Activations . | . . . Shielding Activations . | . . . Robots Disrupted . | . . . Combat Hostiles . | . . . Robots Corrupted . | . . . Combat Hostiles . | . . . Parts Fried . | . . . Impact Corruptions . | . . . Robots Melted . | . . . Combat Hostiles . | . . . Parts Melted . | . . . Heat Transferred 1000 | . 925 75 Parts Sabotaged . | . . . Parts Stolen . | . . . Parts Stripped . | . . . Power Chain Reactions . | . . . Alert | -11 -10 -10 ------- Run | Yrd Mat Min Maximum Alert Level . | . . . Low Security (%) 100 | 100 100 100 Level 1 . | . . . Level 2 . | . . . Level 3 . | . . . Level 4 . | . . . Level 5 . | . . . High Security . | . . . Max Security . | . . . Peak Influence 184 | . 184 85 Initial 65 | . . 65 Average 50 | . 53 70 Influence Increases 500 | . 480 20 Destroy 0b10 Robot/C 340 | . 320 20 Destroy 0b10 Robot/NC 20 | . 20 . Destroy Leader 62 | . 62 . Successful Hack 4 | . 4 . Destroy Structure 14 | . 14 . Lose Combat Pursuer 60 | . 60 . Influence Decreases 425 | . 312 113 Entered New Map 103 | . . 103 Time Decay 269 | . 269 . Lost Part 53 | . 43 10 Squads Dispatched 3 | . 3 . Investigation 2 | . 2 . Extermination . | . . . Reinforcement 1 | . 1 . Assault . | . . . Garrison . | . . . Intercept . | . . . Searches Triggered . | . . . Construction Impeded . | . . . Haulers Reinforced . | . . . Active Scanning Responses . | . . . Cargo Convoy Interrupts . | . . . Stealth | -11 -10 -10 --------- Run | Yrd Mat Min Distress Signals 3 | . 3 . Communications Jammed . | . . . Distress Signals . | . . . Times Spotted 29 | . 26 3 Peak Tracking Total 5 | . 5 3 Tactical Retreats 3 | . 3 . Traps | -11 -10 -10 ------- Run | Yrd Mat Min Traps Triggered 1 | . 1 . Indirectly . | . . . Trap Hack Attempts . | . . . Triggered . | . . . Disarmed . | . . . Reprogrammed . | . . . Reused . | . . . Traps Extracted . | . . . Installed . | . . . Triggered . | . . . Machines | -11 -10 -10 ---------- Run | Yrd Mat Min Machines Disabled . | . . . Max in Single Turn . | . . . Machines Repaired . | . . . Machines Dismantled . | . . . Machines Sabotaged . | . . . Overloaded Fab Kills . | . . . Hacking | -11 -10 -10 --------- Run | Yrd Mat Min Machines Accessed 4 | . 4 . Terminals 3 | . 3 . Fabricators . | . . . Repair Stations 1 | . 1 . Recycling Units . | . . . Scanalyzers . | . . . Garrison Access . | . . . Total Hacks 11 | . 11 . Successful 6 | . 6 . Failed 5 | . 5 . Catastrophic . | . . . Database Lockouts . | . . . Manual 1 | . 1 . Terminals 5 | . 5 . Fabricators . | . . . Repair Stations 6 | . 6 . Recycling Units . | . . . Scanalyzers . | . . . Garrison Access . | . . . Terminal Hacks 1 | . 1 . Zone Layout 1 | . 1 . Fabricator Hacks . | . . . Repair Station Hacks 5 | . 5 . Scan Component 3 | . 3 . Repair 2 | . 2 . Recycling Unit Hacks . | . . . Scanalyzer . | . . . Garrison Access Hacks . | . . . Unauthorized Hacks . | . . . Terminals . | . . . Fabricators . | . . . Repair Stations . | . . . Recycling Units . | . . . Scanalyzers . | . . . Garrison Access . | . . . Data Cores Recovered . | . . . Used . | . . . Hacking Detections 3 | . 3 . Full Trace Events 1 | . 1 . Feedback Events . | . . . Feedback Blocked . | . . . Robot Schematics Acquired . | . . . Robots Built . | . . . Authchips . | . . . Time . | . . . Total Robot Build Rating . | . . . Part Schematics Acquired . | . . . Parts Built . | . . . Authchips . | . . . Time . | . . . Total Part Build Rating . | . . . Parts Repaired 2 | . 2 . Time 52 | . 52 . Parts Recycled . | . . . Recycled Matter . | . . . Retrieved Matter . | . . . Retrieved Components . | . . . Parts Scanalyzed . | . . . Part Schematics Acquired . | . . . Parts Damaged . | . . . Bothacking | -11 -10 -10 ------------ Run | Yrd Mat Min Used RIF Installer . | . . . Robots Hacked . | . . . Non-combat . | . . . Combat . | . . . Robot Hacks Applied . | . . . Relay Couplers Released . | . . . Fabnet Peak Effective % . | . . . Robots Rewired . | . . . Allies Hacked . | . . . Hacks Repelled . | . . . Allies | -11 -10 -10 -------- Run | Yrd Mat Min Total Allies . | . . . Largest Group . | . . . Highest-Rated Group . | . . . Highest-Rated Ally . | . . . Total Orders . | . . . Ally Attacks . | . . . Total Damage . | . . . Kills . | . . . Allies Corrupted . | . . . Allies Melted . | . . . Intel | -11 -10 -10 ------- Run | Yrd Mat Min Active Infowar (turns) . | . . . Robot Analysis Total . | . . . Derelict Logs Recovered . | . . . Drone Launches . | . . . Drone Recoveries . | . . . Exploration | -11 -10 -10 ------------- Run | Yrd Mat Min Turns Passed 818 | 54 746 18 Spaces Moved 413 | 49 351 13 Core 6 | 6 . . Treads . | . . . Legs . | . . . Wheels 336 | 43 280 13 Hover . | . . . Flight 71 | . 71 . Fastest Speed 50 | 50 90 95 Average Speed 130 | 86 137 95 Slowest Speed 915 | 100 915 95 Overloaded Moves . | . . . Propulsion Burnouts . | . . . Robots Hopped . | . . . Potential Cave-ins . | . . . Cave-ins Triggered . | . . . Exploration Rate (%) 13 | 4 31 6 Regions Visited 2 Branch Regions 1 Pre-discovered Areas . | . . . Known Exits Taken . | . . . Unknown Exits Taken 2 | 1 1 . Scrap Searched . | . . . Spaces Dug . | . . . Terrain Destroyed 13 | . 13 . Melee . | . . . Projectile . | . . . AOE 13 | . 13 . Terrain Rammed . | . . . Walls Destroyed . | . . . Machines Disabled . | . . . Actions | -11 -10 -10 --------- Run | Yrd Mat Min Total 581 | 57 509 15 Wait 60 | . 60 . Move 411 | 48 350 13 Hop . | . . . Pick Up 17 | 4 13 . Fast Attach 11 | 5 6 . Attach 5 | . 5 . Detach . | . . . Swap 3 | . 3 . Drop 3 | . 3 . Fire 70 | . 68 2 Melee . | . . . Ram 1 | . 1 . Kick . | . . . Crush . | . . . Escape Stasis . | . . . Rewire . | . . . Trap . | . . . Miscellaneous . | . . . Route ------- -11/Scrapyard -10/Materials -10/Mines History --------- Turn | Location | Event 17 | -11/Scrapyard | Discovered new exit (range 16) 55 | -11/Scrapyard | Entered Materials 319 | -10/Materials | Build established: Mutant 418 | -10/Materials | Core integrity fell below 50% 588 | -10/Materials | Repaired Wheel 616 | -10/Materials | Repaired Wheel 627 | -10/Materials | Discovered new exit (range 16) 671 | -10/Materials | Core integrity fell below 20% 801 | -10/Materials | Entered Mines 819 | -10/Mines | Destroyed by S-10 Pest with Light Assault Rifle Last Messages --------------- S-10 Pest destroyed. R-06 Scavenger collects Lgt. Ion Engine. R-06 Scavenger collects Lgt. Assault Rifle. R-06 Scavenger collects Flight Unit. K-01 Serf cleans the Machine. Connecting with Terminal... >>Layout(Zone) Retrieving Zone 6G layout... Downloaded map data. Acquired Mining Laser. LOCATION=UNKNOWN GOAL=ESCAPE Something is scanning the area. A derelict emerges from the shadows: "What are you doing alone down here?" 1P-2J9(g): "Well, at least you look like you can take care of yourself!" 1P-2J9(g): "I have the funny feeling that things are about to get a lot worse around here, see you around!" 1P-2J9(g) slips back into the shadows. S-10 Pest destroyed. Sml. Laser destroyed. Map ----- +----------------------------------------------------+ | | | | | | | | | | | | | | | | | | | | | | | | | | | | | ?????????????????????????????????????????? | | ?????????????????????????????????????????? | | ?????????????????????????????????????????? | | ?????????????????????????????????????????? | | ?????????????????###?????????????????????? | | ?????????????????# ##????????????????????? | | ?????????????????# #????????????????????? | | ????????????????## #????????????????????? | | ?????????????#### ##???????????????????? | | ??????????#### ####????????????????? | | ??????????# = ##########???????? | | ??????????# ##% s@ t #?????? | | ??????????# #####s ##########???????? | | ??????????## ##???# #????????????????? | | ???????????# ##????# #????????????????? | | ???????????# ##????? #????????????????? | | ???????????####????? #????????????????? | | ??????????????????? ????????????????? | | ??????????????????## ????????????????? | | ???????????????????## ????????????????? | | ????????????????????## ???????????????? | | ?????????????????????## ???????????????? | | ???????????????????????# ???????????????? | | ????????????????????????# ???????????????? | | ????????????????????????? ??????????????? | | ?????????????????????????# ??????????????? | | ?????????????????????????????????????????? | | ?????????????????????????????????????????? | | ?????????????????????????????????????????? | | ?????????????????????????????????????????? | | ?????????????????????????????????????????? | | ?????????????????????????????????????????? | | ?????????????????????????????????????????? | | ?????????????????????????????????????????? | | ?????????????????????????????????????????? | | ?????????????????????????????????????????? | +----------------------------------------------------+ Best States ------------- Heat Dissipation 25 Energy Generation 10 Energy Capacity 250 Matter Stores 300 Matter Capacity 300 Sight Range 16 Terrain Scan Density 10 Additional Mass Support 6 Evasion (%) 44 Item Schematics ----------------- None Robot Schematics ------------------ None Fabricated ------------ Nothing Repaired ---------- Wheel | 30% | -10/Materials Wheel | 35% | -10/Materials Alien Tech Used ----------------- None Achievements -------------- None Challenges ------------ None Game ------ Seed ThiefEncryptedMesh Manual? 0 Play Time 00:06:56 Cumulative 2.9 hours Start 2025.07.04 @ 14:04:19 End 2025.07.04 @ 14:10:55 Sessions 1 Manual Loads 0 Difficulty Rogue Special Mode None Game No. 6 Rogue 6 Adventurer 0 Explorer 0 Win Type - Total 0 Types 0/0/0/0/0/0/0/0/0/0 Lore% 1 Gallery% 8 Achievement% 12 Wizard Run 0 Options --------- Layout 0 ASCII 0 Keyboard 0 Movement Arrows Keybinds 0 Fullscreen 2 Font 18/SmallcapsGlow Map View 38x25 Zoom Use 100% Tactical HUD 0 Map Filters NONE Filters NONE Steam 1 RUN: 536a6454-56c9-40df-b211-9266b4a81a3c